[Event "Titled Tuesday Blitz July 4 Early 2023"]
[White "Pinheiro, Iung Alicio de O."]
[Black "Dardha, Daniel"]
[WhiteFideId "2104350"]
[BlackFideId "240990"]
[WhiteElo "2600"]
[BlackElo "2893"]
[Result "0-1"]
[Round "7"]
[TimeControl "180+2"]
[Date "2023.07.04"]
[WhiteClock "0:00:00"]
[BlackClock "0:01:15"]
[Board "37"]

1. d4 {[%clk 0:03:00]}  d5 {[%clk 0:02:59]} 2. Bf4 {[%clk 0:02:56]}  c5 {[%clk 0:02:56]} 3. e3 {[%clk 0:02:56]}  cxd4 {[%clk 0:02:54]} 4. exd4 {[%clk 0:02:56]}  Nc6 {[%clk 0:02:55]} 5. c3 {[%clk 0:02:55]}  Bf5 {[%clk 0:02:54]} 6. Nd2 {[%clk 0:02:49]}  f6 {[%clk 0:02:50]} 7. Ngf3 {[%clk 0:02:43]}  g5 {[%clk 0:02:50]} 8. Bg3 {[%clk 0:02:41]}  h5 {[%clk 0:02:50]} 9. h3 {[%clk 0:02:16]}  e6 {[%clk 0:02:49]} 10. Qb3 {[%clk 0:02:15]}  Qd7 {[%clk 0:02:46]} 11. Qa4 {[%clk 0:01:46]}  Nge7 {[%clk 0:02:40]} 12. Bb5 {[%clk 0:01:37]}  a6 {[%clk 0:02:38]} 13. Nf1 {[%clk 0:01:20]}  Nc8 {[%clk 0:02:35]} 14. Be2 {[%clk 0:01:19]}  Bd6 {[%clk 0:02:34]} 15. Bxd6 {[%clk 0:01:17]}  Nxd6 {[%clk 0:02:35]} 16. Ne3 {[%clk 0:01:17]}  Bg6 {[%clk 0:02:35]} 17. Qb3 {[%clk 0:01:08]}  b5 {[%clk 0:02:32]} 18. a4 {[%clk 0:01:06]}  Kf7 {[%clk 0:02:23]} 19. axb5 {[%clk 0:01:02]}  axb5 {[%clk 0:02:24]} 20. Rxa8 {[%clk 0:00:54]}  Rxa8 {[%clk 0:02:25]} 21. O-O {[%clk 0:00:54]}  Qa7 {[%clk 0:02:07]} 22. Qd1 {[%clk 0:00:43]}  Qa2 {[%clk 0:02:02]} 23. Qc1 {[%clk 0:00:41]}  Na5 {[%clk 0:01:59]} 24. Nd1 {[%clk 0:00:32]}  Nb3 {[%clk 0:01:52]} 25. Qe3 {[%clk 0:00:26]}  Nf5 {[%clk 0:01:51]} 26. Nxg5+ {[%clk 0:00:26]}  fxg5 {[%clk 0:01:51]} 27. Qxg5 {[%clk 0:00:27]}  Qa7 {[%clk 0:01:41]} 28. Bxh5 {[%clk 0:00:26]}  Rg8 {[%clk 0:01:40]} 29. Ne3 {[%clk 0:00:26]}  Qe7 {[%clk 0:01:37]} 30. Bxg6+ {[%clk 0:00:23]}  Rxg6 {[%clk 0:01:38]} 31. Qf4 {[%clk 0:00:24]}  Qd6 {[%clk 0:01:29]} 32. Qxd6 {[%clk 0:00:12]}  Nxd6 {[%clk 0:01:30]} 33. Ng4 {[%clk 0:00:13]}  Nc4 {[%clk 0:01:30]} 34. Re1 {[%clk 0:00:11]}  Ke7 {[%clk 0:01:29]} 35. f3 {[%clk 0:00:10]}  Rg8 {[%clk 0:01:26]} 36. Re2 {[%clk 0:00:10]}  Ra8 {[%clk 0:01:26]} 37. h4 {[%clk 0:00:10]}  b4 {[%clk 0:01:19]} 38. h5 {[%clk 0:00:09]}  Nc1 {[%clk 0:01:19]} 39. Re1 {[%clk 0:00:07]}  Nd3 {[%clk 0:01:19]} 40. Re2 {[%clk 0:00:08]}  b3 {[%clk 0:01:18]} 41. h6 {[%clk 0:00:07]}  Ndxb2 {[%clk 0:01:17]} 42. f4 {[%clk 0:00:05]}  Nd3 {[%clk 0:01:17]} 43. f5 {[%clk 0:00:04]}  b2 {[%clk 0:01:17]} 44. Rxe6+ {[%clk 0:00:04]}  Kd8 {[%clk 0:01:16]} 45. h7 {[%clk 0:00:03]}  b1=Q+ {[%clk 0:01:15]} 46. Kh2 {[%clk 0:00:04]}  Kc7 {[%clk 0:01:15]} 47. Re7+ {[%clk 0:00:02]}  Kc6 {[%clk 0:01:15]} 48. Re5 {[%clk 0:00:00]}  Ncxe5 {[%clk 0:01:15]} 0-1


[Site "https://www.chess.com"]

[Event "Titled Tuesday Blitz July 4 Early 2023"]
[White "Pap, Gyula"]
[Black "Ovchinnikov, Vsevolod"]
[WhiteFideId "725323"]
[BlackFideId "24176842"]
[WhiteElo "2847"]
[BlackElo "2598"]
[Result "1-0"]
[Round "7"]
[TimeControl "180+2"]
[Date "2023.07.04"]
[WhiteClock "0:00:07"]
[BlackClock "0:00:00"]
[Board "39"]

1. d4 {[%clk 0:03:00]}  Nf6 {[%clk 0:02:59]} 2. c4 {[%clk 0:03:01]}  c6 {[%clk 0:03:00]} 3. Nf3 {[%clk 0:03:00]}  d5 {[%clk 0:03:00]} 4. Nbd2 {[%clk 0:03:01]}  Bg4 {[%clk 0:02:58]} 5. Ne5 {[%clk 0:02:57]}  Be6 {[%clk 0:02:57]} 6. cxd5 {[%clk 0:02:49]}  Nxd5 {[%clk 0:02:47]} 7. Ndf3 {[%clk 0:02:40]}  Nd7 {[%clk 0:02:45]} 8. Nd3 {[%clk 0:02:40]}  Bf5 {[%clk 0:02:40]} 9. g3 {[%clk 0:02:38]}  e6 {[%clk 0:02:35]} 10. Bg2 {[%clk 0:02:38]}  Qa5+ {[%clk 0:02:36]} 11. Bd2 {[%clk 0:02:35]}  Qb5 {[%clk 0:02:31]} 12. a4 {[%clk 0:02:20]}  Qb6 {[%clk 0:02:30]} 13. a5 {[%clk 0:02:15]}  Qb5 {[%clk 0:02:27]} 14. a6 {[%clk 0:02:15]}  Bxd3 {[%clk 0:02:18]} 15. axb7 {[%clk 0:02:15]}  Qxb7 {[%clk 0:02:19]} 16. exd3 {[%clk 0:02:14]}  Bb4 {[%clk 0:02:20]} 17. O-O {[%clk 0:02:12]}  O-O {[%clk 0:02:19]} 18. Bc1 {[%clk 0:02:08]}  Be7 {[%clk 0:01:57]} 19. h4 {[%clk 0:02:08]}  Bf6 {[%clk 0:01:52]} 20. Re1 {[%clk 0:01:46]}  Rfc8 {[%clk 0:01:49]} 21. Ra4 {[%clk 0:01:30]}  Qb5 {[%clk 0:01:43]} 22. Rc4 {[%clk 0:01:29]}  Rab8 {[%clk 0:01:25]} 23. Ng5 {[%clk 0:01:22]}  Bxg5 {[%clk 0:01:07]} 24. hxg5 {[%clk 0:01:22]}  Qb3 {[%clk 0:00:58]} 25. Qe2 {[%clk 0:01:13]}  Nf8 {[%clk 0:00:51]} 26. Be4 {[%clk 0:01:10]}  Rb4 {[%clk 0:00:44]} 27. Kg2 {[%clk 0:01:06]}  Rxc4 {[%clk 0:00:31]} 28. dxc4 {[%clk 0:01:07]}  Nb6 {[%clk 0:00:31]} 29. Bd3 {[%clk 0:01:04]}  Rd8 {[%clk 0:00:26]} 30. Be3 {[%clk 0:00:59]}  Qb4 {[%clk 0:00:20]} 31. Rh1 {[%clk 0:00:55]}  g6 {[%clk 0:00:15]} 32. Ra1 {[%clk 0:00:48]}  Rd7 {[%clk 0:00:15]} 33. Qc2 {[%clk 0:00:36]}  Rb7 {[%clk 0:00:13]} 34. Qc3 {[%clk 0:00:36]}  Qxc3 {[%clk 0:00:11]} 35. bxc3 {[%clk 0:00:37]}  Nfd7 {[%clk 0:00:10]} 36. Ra5 {[%clk 0:00:33]}  Kf8 {[%clk 0:00:08]} 37. Bf4 {[%clk 0:00:31]}  Ke8 {[%clk 0:00:08]} 38. Bd6 {[%clk 0:00:30]}  Nc8 {[%clk 0:00:08]} 39. Bb4 {[%clk 0:00:30]}  Ncb6 {[%clk 0:00:07]} 40. f4 {[%clk 0:00:29]}  Rc7 {[%clk 0:00:06]} 41. Kf3 {[%clk 0:00:28]}  Rb7 {[%clk 0:00:07]} 42. Ke3 {[%clk 0:00:28]}  Rc7 {[%clk 0:00:07]} 43. Kd2 {[%clk 0:00:28]}  Rb7 {[%clk 0:00:07]} 44. Kc2 {[%clk 0:00:28]}  Rc7 {[%clk 0:00:08]} 45. Kb3 {[%clk 0:00:27]}  Rb7 {[%clk 0:00:08]} 46. Be4 {[%clk 0:00:28]}  Nb8 {[%clk 0:00:05]} 47. g4 {[%clk 0:00:27]}  Kd8 {[%clk 0:00:04]} 48. f5 {[%clk 0:00:27]}  Kc8 {[%clk 0:00:04]} 49. Bf3 {[%clk 0:00:22]}  N6d7 {[%clk 0:00:04]} 50. fxe6 {[%clk 0:00:18]}  fxe6 {[%clk 0:00:05]} 51. c5 {[%clk 0:00:19]}  Kd8 {[%clk 0:00:03]} 52. Kc4 {[%clk 0:00:19]}  Ke7 {[%clk 0:00:04]} 53. Ra1 {[%clk 0:00:18]}  Rc7 {[%clk 0:00:03]} 54. Rh1 {[%clk 0:00:18]}  Nf8 {[%clk 0:00:03]} 55. Be4 {[%clk 0:00:17]}  Rb7 {[%clk 0:00:03]} 56. Kd3 {[%clk 0:00:16]}  Ke8 {[%clk 0:00:03]} 57. Rf1 {[%clk 0:00:15]}  Rf7 {[%clk 0:00:02]} 58. Ra1 {[%clk 0:00:15]}  Rb7 {[%clk 0:00:02]} 59. Ba5 {[%clk 0:00:13]}  Ke7 {[%clk 0:00:02]} 60. c4 {[%clk 0:00:14]}  Nfd7 {[%clk 0:00:02]} 61. Bc3 {[%clk 0:00:14]}  e5 {[%clk 0:00:01]} 62. Rh1 {[%clk 0:00:13]}  exd4 {[%clk 0:00:01]} 63. Bxd4 {[%clk 0:00:10]}  Nf8 {[%clk 0:00:01]} 64. Bf6+ {[%clk 0:00:08]}  Ke8 {[%clk 0:00:01]} 65. Re1 {[%clk 0:00:08]}  Kf7 {[%clk 0:00:02]} 66. Bf3 {[%clk 0:00:07]}  Nbd7 {[%clk 0:00:02]} 67. Bd4 {[%clk 0:00:07]}  Rb3+ {[%clk 0:00:02]} 68. Bc3 {[%clk 0:00:06]}  Nxc5+ {[%clk 0:00:02]} 69. Kc2 {[%clk 0:00:07]}  Ra3 {[%clk 0:00:01]} 70. Rf1 {[%clk 0:00:06]}  Ke8 {[%clk 0:00:01]} 71. Bb4 {[%clk 0:00:07]}  Nfd7 {[%clk 0:00:00]} 72. Bxa3 {[%clk 0:00:07]} 1-0


[Site "https://www.chess.com"]

[Event "Titled Tuesday Blitz July 4 Early 2023"]
[White "Materia, Marco"]
[Black "Kosakowski, Jakub"]
[WhiteFideId "45150451"]
[BlackFideId "1185080"]
[WhiteElo "2590"]
[BlackElo "2839"]
[Result "1-0"]
[Round "7"]
[TimeControl "180+2"]
[Date "2023.07.04"]
[WhiteClock "0:00:16"]
[BlackClock "0:00:03"]
[Board "40"]

1. d4 {[%clk 0:03:00]}  Nf6 {[%clk 0:02:58]} 2. c4 {[%clk 0:03:01]}  e6 {[%clk 0:02:58]} 3. Nf3 {[%clk 0:03:00]}  d5 {[%clk 0:02:58]} 4. Nc3 {[%clk 0:03:00]}  Bb4 {[%clk 0:02:58]} 5. cxd5 {[%clk 0:02:55]}  exd5 {[%clk 0:02:58]} 6. Bg5 {[%clk 0:02:56]}  Qd6 {[%clk 0:02:56]} 7. a3 {[%clk 0:02:49]}  Bxc3+ {[%clk 0:02:54]} 8. bxc3 {[%clk 0:02:49]}  Ne4 {[%clk 0:02:54]} 9. Qc1 {[%clk 0:02:47]}  O-O {[%clk 0:02:52]} 10. e3 {[%clk 0:02:46]}  Bg4 {[%clk 0:02:43]} 11. Bf4 {[%clk 0:02:45]}  Qd8 {[%clk 0:02:37]} 12. Ne5 {[%clk 0:02:44]}  Be6 {[%clk 0:02:37]} 13. Bd3 {[%clk 0:02:39]}  f6 {[%clk 0:02:34]} 14. Nf3 {[%clk 0:02:38]}  Nd7 {[%clk 0:02:21]} 15. O-O {[%clk 0:02:38]}  Nb6 {[%clk 0:02:20]} 16. Rb1 {[%clk 0:02:34]}  Qd7 {[%clk 0:02:18]} 17. c4 {[%clk 0:02:28]}  Nxc4 {[%clk 0:02:12]} 18. Rxb7 {[%clk 0:02:28]}  Ned6 {[%clk 0:02:08]} 19. Rb3 {[%clk 0:02:09]}  Rab8 {[%clk 0:02:03]} 20. Rxb8 {[%clk 0:02:07]}  Rxb8 {[%clk 0:02:04]} 21. Nd2 {[%clk 0:02:06]}  Qa4 {[%clk 0:01:48]} 22. Nxc4 {[%clk 0:02:02]}  dxc4 {[%clk 0:01:47]} 23. Bc2 {[%clk 0:02:00]}  Qa5 {[%clk 0:01:47]} 24. e4 {[%clk 0:01:58]}  Nb5 {[%clk 0:01:43]} 25. d5 {[%clk 0:01:51]}  Bd7 {[%clk 0:01:42]} 26. e5 {[%clk 0:01:41]}  Nd4 {[%clk 0:01:39]} 27. Bd1 {[%clk 0:01:41]}  fxe5 {[%clk 0:01:33]} 28. Bxe5 {[%clk 0:01:40]}  Qxd5 {[%clk 0:01:33]} 29. Qg5 {[%clk 0:01:35]}  Ne6 {[%clk 0:01:28]} 30. Qg3 {[%clk 0:01:35]}  Rf8 {[%clk 0:01:24]} 31. Bf3 {[%clk 0:01:29]}  Rxf3 {[%clk 0:01:17]} 32. gxf3 {[%clk 0:01:29]}  Bc6 {[%clk 0:01:16]} 33. Bc3 {[%clk 0:01:18]}  Ng5 {[%clk 0:01:12]} 34. Kg2 {[%clk 0:01:15]}  Qf5 {[%clk 0:01:06]} 35. h4 {[%clk 0:00:58]}  Bxf3+ {[%clk 0:00:54]} 36. Kh2 {[%clk 0:00:58]}  Ne6 {[%clk 0:00:52]} 37. Re1 {[%clk 0:00:56]}  Kf7 {[%clk 0:00:25]} 38. Re5 {[%clk 0:00:51]}  Qg4 {[%clk 0:00:25]} 39. Re3 {[%clk 0:00:50]}  Qxg3+ {[%clk 0:00:24]} 40. Kxg3 {[%clk 0:00:49]}  Bd5 {[%clk 0:00:25]} 41. Re5 {[%clk 0:00:45]}  c6 {[%clk 0:00:25]} 42. f3 {[%clk 0:00:46]}  g6 {[%clk 0:00:24]} 43. h5 {[%clk 0:00:45]}  g5 {[%clk 0:00:21]} 44. Rf5+ {[%clk 0:00:42]}  Ke8 {[%clk 0:00:15]} 45. h6 {[%clk 0:00:41]}  a6 {[%clk 0:00:11]} 46. Bf6 {[%clk 0:00:38]}  Kf7 {[%clk 0:00:11]} 47. Kg4 {[%clk 0:00:34]}  Kg6 {[%clk 0:00:11]} 48. Bxg5 {[%clk 0:00:31]}  Nxg5 {[%clk 0:00:08]} 49. Rxg5+ {[%clk 0:00:31]}  Kf6 {[%clk 0:00:09]} 50. Kf4 {[%clk 0:00:29]}  c3 {[%clk 0:00:08]} 51. Rg1 {[%clk 0:00:30]}  c2 {[%clk 0:00:08]} 52. Ke3 {[%clk 0:00:30]}  Bb3 {[%clk 0:00:06]} 53. Kd2 {[%clk 0:00:30]}  a5 {[%clk 0:00:05]} 54. Rg7 {[%clk 0:00:30]}  a4 {[%clk 0:00:03]} 55. f4 {[%clk 0:00:30]}  c5 {[%clk 0:00:03]} 56. Kc1 {[%clk 0:00:24]}  c4 {[%clk 0:00:03]} 57. Rxh7 {[%clk 0:00:23]}  Kg6 {[%clk 0:00:03]} 58. Rg7+ {[%clk 0:00:23]}  Kxh6 {[%clk 0:00:03]} 59. Rg3 {[%clk 0:00:21]}  c3 {[%clk 0:00:02]} 60. f5 {[%clk 0:00:21]}  Kh5 {[%clk 0:00:02]} 61. f6 {[%clk 0:00:22]}  Kh6 {[%clk 0:00:03]} 62. Rxc3 {[%clk 0:00:21]}  Kg6 {[%clk 0:00:02]} 63. Rf3 {[%clk 0:00:22]}  Kf7 {[%clk 0:00:03]} 64. Rf1 {[%clk 0:00:22]}  Kf8 {[%clk 0:00:02]} 65. Kb2 {[%clk 0:00:21]}  Kf7 {[%clk 0:00:02]} 66. Kc3 {[%clk 0:00:20]}  Kg6 {[%clk 0:00:02]} 67. Kb4 {[%clk 0:00:20]}  Kf7 {[%clk 0:00:02]} 68. Kb5 {[%clk 0:00:21]}  Kg6 {[%clk 0:00:02]} 69. f7 {[%clk 0:00:21]}  Bxf7 {[%clk 0:00:02]} 70. Kxa4 {[%clk 0:00:22]}  Bc4 {[%clk 0:00:02]} 71. Rc1 {[%clk 0:00:21]}  Bd3 {[%clk 0:00:02]} 72. Kb4 {[%clk 0:00:22]}  Kf6 {[%clk 0:00:03]} 73. Kc3 {[%clk 0:00:22]}  Bf5 {[%clk 0:00:03]} 74. Re1 {[%clk 0:00:22]}  Be4 {[%clk 0:00:01]} 75. a4 {[%clk 0:00:20]}  Ke5 {[%clk 0:00:01]} 76. Kd2 {[%clk 0:00:20]}  Kd4 {[%clk 0:00:01]} 77. a5 {[%clk 0:00:19]}  Bc6 {[%clk 0:00:01]} 78. Kxc2 {[%clk 0:00:18]}  Kc5 {[%clk 0:00:01]} 79. Kc3 {[%clk 0:00:18]}  Kb5 {[%clk 0:00:02]} 80. Re5+ {[%clk 0:00:18]}  Ka6 {[%clk 0:00:02]} 81. Kb4 {[%clk 0:00:19]}  Bg2 {[%clk 0:00:02]} 82. Re6+ {[%clk 0:00:19]}  Ka7 {[%clk 0:00:03]} 83. a6 {[%clk 0:00:16]}  Bd5 {[%clk 0:00:02]} 84. Rh6 {[%clk 0:00:15]}  Be4 {[%clk 0:00:02]} 85. Ka5 {[%clk 0:00:15]}  Bd3 {[%clk 0:00:02]} 86. Rf6 {[%clk 0:00:15]}  Bc4 {[%clk 0:00:02]} 87. Rg6 {[%clk 0:00:15]}  Bd3 {[%clk 0:00:02]} 88. Rg7+ {[%clk 0:00:16]}  Kb8 {[%clk 0:00:02]} 89. Kb6 {[%clk 0:00:16]}  Bc4 {[%clk 0:00:03]} 90. a7+ {[%clk 0:00:15]}  Ka8 {[%clk 0:00:04]} 91. Rd7 {[%clk 0:00:16]}  Bd5 {[%clk 0:00:03]} 92. Rd8# {[%clk 0:00:16]} 1-0


[Site "https://www.chess.com"]

[Event "Titled Tuesday Blitz July 4 Early 2023"]
[White "Mamedov, Edgar"]
[Black "demon64fields"]
[WhiteFideId "13739980"]
[WhiteElo "2564"]
[BlackElo "2811"]
[Result "0-1"]
[Round "7"]
[TimeControl "180+2"]
[Date "2023.07.04"]
[WhiteClock "0:00:00"]
[BlackClock "0:01:09"]
[Board "42"]

1. c4 {[%clk 0:02:57]}  g6 {[%clk 0:02:59]} 2. g3 {[%clk 0:02:55]}  Bg7 {[%clk 0:03:00]} 3. Bg2 {[%clk 0:02:55]}  c5 {[%clk 0:03:01]} 4. Nc3 {[%clk 0:02:55]}  Nc6 {[%clk 0:03:01]} 5. Nf3 {[%clk 0:02:55]}  e6 {[%clk 0:03:01]} 6. O-O {[%clk 0:02:56]}  Nge7 {[%clk 0:03:02]} 7. e3 {[%clk 0:02:55]}  Nf5 {[%clk 0:03:02]} 8. b3 {[%clk 0:02:52]}  O-O {[%clk 0:03:02]} 9. Bb2 {[%clk 0:02:52]}  d5 {[%clk 0:03:02]} 10. cxd5 {[%clk 0:02:41]}  exd5 {[%clk 0:03:03]} 11. Rc1 {[%clk 0:02:37]}  b6 {[%clk 0:02:59]} 12. d4 {[%clk 0:02:31]}  cxd4 {[%clk 0:02:49]} 13. Nxd5 {[%clk 0:02:14]}  Bb7 {[%clk 0:02:24]} 14. e4 {[%clk 0:02:12]}  Nfe7 {[%clk 0:02:19]} 15. Nxd4 {[%clk 0:02:08]}  Nxd4 {[%clk 0:02:19]} 16. Bxd4 {[%clk 0:02:05]}  Nxd5 {[%clk 0:02:19]} 17. Bxg7 {[%clk 0:01:51]}  Kxg7 {[%clk 0:02:20]} 18. exd5 {[%clk 0:01:50]}  Qd6 {[%clk 0:02:20]} 19. Qd4+ {[%clk 0:01:45]}  Kg8 {[%clk 0:02:20]} 20. Rfd1 {[%clk 0:01:41]}  Rac8 {[%clk 0:02:20]} 21. h4 {[%clk 0:01:39]}  h5 {[%clk 0:02:20]} 22. Rc4 {[%clk 0:01:37]}  Rc5 {[%clk 0:02:16]} 23. Rxc5 {[%clk 0:01:35]}  bxc5 {[%clk 0:02:17]} 24. Qc3 {[%clk 0:01:28]}  Re8 {[%clk 0:02:12]} 25. Rc1 {[%clk 0:01:18]}  Rc8 {[%clk 0:02:12]} 26. Qc4 {[%clk 0:01:12]}  Kg7 {[%clk 0:02:03]} 27. Re1 {[%clk 0:00:56]}  a6 {[%clk 0:01:56]} 28. Qc3+ {[%clk 0:00:55]}  Qf6 {[%clk 0:01:56]} 29. Qxf6+ {[%clk 0:00:35]}  Kxf6 {[%clk 0:01:57]} 30. d6 {[%clk 0:00:28]}  Bxg2 {[%clk 0:01:58]} 31. Kxg2 {[%clk 0:00:26]}  c4 {[%clk 0:01:38]} 32. Rc1 {[%clk 0:00:18]}  Ke6 {[%clk 0:01:32]} 33. bxc4 {[%clk 0:00:16]}  Kxd6 {[%clk 0:01:32]} 34. Kf3 {[%clk 0:00:16]}  Kc5 {[%clk 0:01:29]} 35. Rd1 {[%clk 0:00:15]}  Rc6 {[%clk 0:01:28]} 36. Rc1 {[%clk 0:00:02]}  a5 {[%clk 0:01:27]} 37. a3 {[%clk 0:00:01]}  Rb6 {[%clk 0:01:27]} 38. Kg2 {[%clk 0:00:02]}  Rb3 {[%clk 0:01:27]} 39. Rd1 {[%clk 0:00:01]}  Rxa3 {[%clk 0:01:24]} 40. Rd7 {[%clk 0:00:02]}  Rc3 {[%clk 0:01:11]} 41. Rxf7 {[%clk 0:00:01]}  a4 {[%clk 0:01:11]} 42. Rc7+ {[%clk 0:00:01]}  Kb4 {[%clk 0:01:11]} 43. Rc6 {[%clk 0:00:00]}  a3 {[%clk 0:01:09]} 0-1


[Site "https://www.chess.com"]

[Event "Titled Tuesday Blitz July 4 Early 2023"]
[White "Ismagilov, Damir"]
[Black "Kantor, Gergely"]
[WhiteFideId "34199982"]
[BlackFideId "751499"]
[WhiteElo "2563"]
[BlackElo "2810"]
[Result "0-1"]
[Round "7"]
[TimeControl "180+2"]
[Date "2023.07.04"]
[WhiteClock "0:00:01"]
[BlackClock "0:02:03"]
[Board "43"]

1. d4 {[%clk 0:01:42]}  Nf6 {[%clk 0:02:58]} 2. Bf4 {[%clk 0:01:43]}  Nh5 {[%clk 0:02:54]} 3. Bd2 {[%clk 0:01:42]}  Nf6 {[%clk 0:02:52]} 4. Bf4 {[%clk 0:01:42]}  g6 {[%clk 0:02:52]} 5. Nc3 {[%clk 0:01:41]}  d5 {[%clk 0:02:50]} 6. Qd2 {[%clk 0:01:42]}  c5 {[%clk 0:02:48]} 7. dxc5 {[%clk 0:01:42]}  Nc6 {[%clk 0:02:48]} 8. O-O-O {[%clk 0:01:42]}  d4 {[%clk 0:02:47]} 9. e3 {[%clk 0:01:36]}  dxc3 {[%clk 0:02:43]} 10. Qxc3 {[%clk 0:01:25]}  Bd7 {[%clk 0:02:40]} 11. Nf3 {[%clk 0:01:20]}  Bg7 {[%clk 0:02:40]} 12. Bc4 {[%clk 0:01:12]}  O-O {[%clk 0:02:37]} 13. h4 {[%clk 0:01:11]}  Ne4 {[%clk 0:02:27]} 14. Qe1 {[%clk 0:00:51]}  Nxc5 {[%clk 0:02:24]} 15. h5 {[%clk 0:00:51]}  Qb6 {[%clk 0:02:24]} 16. c3 {[%clk 0:00:46]}  Be6 {[%clk 0:02:23]} 17. Bxe6 {[%clk 0:00:44]}  Nxe6 {[%clk 0:02:23]} 18. hxg6 {[%clk 0:00:42]}  hxg6 {[%clk 0:02:23]} 19. Qg1 {[%clk 0:00:40]}  Nxf4 {[%clk 0:02:21]} 20. exf4 {[%clk 0:00:39]}  Rfd8 {[%clk 0:02:19]} 21. Ng5 {[%clk 0:00:31]}  Rxd1+ {[%clk 0:02:17]} 22. Qxd1 {[%clk 0:00:32]}  Qxf2 {[%clk 0:02:14]} 23. Qg4 {[%clk 0:00:22]}  Nb4 {[%clk 0:02:11]} 24. Kb1 {[%clk 0:00:14]}  Nd3 {[%clk 0:02:07]} 25. Rh8+ {[%clk 0:00:09]}  Bxh8 {[%clk 0:02:05]} 26. Qe2 {[%clk 0:00:02]}  Qxe2 {[%clk 0:02:04]} 27. a4 {[%clk 0:00:01]}  Qxb2# {[%clk 0:02:03]} 0-1


[Site "https://www.chess.com"]

[Event "Titled Tuesday Blitz July 4 Early 2023"]
[White "Mendonca, Leon Luke"]
[Black "Tologon tegin, Semetei"]
[WhiteFideId "35028561"]
[BlackFideId "13800574"]
[WhiteElo "2779"]
[BlackElo "2562"]
[Result "0-1"]
[Round "7"]
[TimeControl "180+2"]
[Date "2023.07.04"]
[WhiteClock "0:00:01"]
[BlackClock "0:01:16"]
[Board "45"]

1. e4 {[%clk 0:03:00]}  g6 {[%clk 0:02:58]} 2. Nf3 {[%clk 0:03:00]}  Bg7 {[%clk 0:02:58]} 3. d4 {[%clk 0:03:00]}  d6 {[%clk 0:02:58]} 4. Be2 {[%clk 0:03:01]}  Nf6 {[%clk 0:02:58]} 5. Nc3 {[%clk 0:03:01]}  O-O {[%clk 0:02:58]} 6. O-O {[%clk 0:03:02]}  a6 {[%clk 0:02:58]} 7. a4 {[%clk 0:03:02]}  Nc6 {[%clk 0:02:58]} 8. d5 {[%clk 0:02:53]}  Nb4 {[%clk 0:02:58]} 9. Be3 {[%clk 0:02:47]}  c6 {[%clk 0:02:55]} 10. a5 {[%clk 0:02:42]}  cxd5 {[%clk 0:02:53]} 11. exd5 {[%clk 0:02:43]}  Bf5 {[%clk 0:02:46]} 12. Nd4 {[%clk 0:02:43]}  Bd7 {[%clk 0:02:30]} 13. Bc4 {[%clk 0:02:28]}  Rc8 {[%clk 0:02:28]} 14. Bb3 {[%clk 0:02:13]}  Ng4 {[%clk 0:02:22]} 15. Bg5 {[%clk 0:01:59]}  h6 {[%clk 0:02:21]} 16. Bh4 {[%clk 0:02:00]}  Ne5 {[%clk 0:02:20]} 17. Re1 {[%clk 0:01:55]}  Re8 {[%clk 0:02:20]} 18. Qd2 {[%clk 0:01:54]}  Nc4 {[%clk 0:02:15]} 19. Bxc4 {[%clk 0:01:51]}  Rxc4 {[%clk 0:02:16]} 20. Re4 {[%clk 0:01:30]}  Bxd4 {[%clk 0:01:48]} 21. Rxd4 {[%clk 0:01:06]}  Rxd4 {[%clk 0:01:48]} 22. Qxd4 {[%clk 0:01:07]}  Nxc2 {[%clk 0:01:48]} 23. Qd1 {[%clk 0:01:08]}  Nxa1 {[%clk 0:01:47]} 24. Qxa1 {[%clk 0:01:09]}  Qc7 {[%clk 0:01:42]} 25. Qc1 {[%clk 0:01:08]}  Qxa5 {[%clk 0:01:38]} 26. h3 {[%clk 0:01:03]}  Qb4 {[%clk 0:01:32]} 27. Qxh6 {[%clk 0:00:50]}  Qxb2 {[%clk 0:01:32]} 28. Qe3 {[%clk 0:00:41]}  a5 {[%clk 0:01:25]} 29. Kh2 {[%clk 0:00:24]}  a4 {[%clk 0:01:22]} 30. Bg3 {[%clk 0:00:03]}  a3 {[%clk 0:01:20]} 31. h4 {[%clk 0:00:03]}  a2 {[%clk 0:01:16]} 32. Nxa2 {[%clk 0:00:03]}  Qxa2 {[%clk 0:01:15]} 33. h5 {[%clk 0:00:04]}  Qxd5 {[%clk 0:01:15]} 34. hxg6 {[%clk 0:00:02]}  Qh5+ {[%clk 0:01:15]} 35. Kg1 {[%clk 0:00:01]}  Qxg6 {[%clk 0:01:16]} 0-1


[Site "https://www.chess.com"]